bitfinex/quotes_BTCUSD_20230403
["timestamp","ask_amount","ask_price","bid_price","bid_amount"]
[1680517214775,0.001,28345.0,28344.0,0.00160071]
[1680517215818,0.001,28345.0,28344.0,0.01924071]
[1680517216016,0.001,28345.0,28344.0,0.00160071]
[1680517216244,0.001,28345.0,28344.0,0.01924071]
[1680517216446,0.001,28345.0,28344.0,0.08602543]
[1680517216769,0.001,28345.0,28344.0,0.10366543]
[1680517216983,0.146664,28346.0,28344.0,0.08502543]
[1680517217201,0.001,28345.0,28344.0,0.10266543]
[1680517217678,0.001,28345.0,28344.0,0.00060071]
[1680517218093,0.001,28345.0,28344.0,0.01824071]
[1680517218260,0.001,28345.0,28344.0,0.10266543]
[1680517219744,0.146664,28346.0,28344.0,0.01824071]
[1680517220000,0.146664,28346.0,28344.0,0.10266543]
[1680517220222,0.146664,28346.0,28344.0,0.10466543]
[1680517220433,0.146664,28346.0,28344.0,0.02024071]
[1680517220840,0.146664,28346.0,28344.0,0.10266543]
[1680517221051,0.146664,28346.0,28344.0,0.10466543]
[1680517221278,0.146664,28346.0,28344.0,0.10266543]
[1680517221467,0.146664,28346.0,28344.0,0.10466543]
[1680517222631,0.146664,28346.0,28344.0,0.02024071]
[1680517222855,0.146664,28346.0,28344.0,0.00260071]
[1680517223750,0.042059,28345.0,28344.0,0.00260071]
[1680517223969,0.146664,28346.0,28344.0,0.00060071]
[1680517224194,0.146664,28346.0,28344.0,0.00260071]
[1680517225489,0.146664,28346.0,28342.0,0.07048736]
[1680517225926,0.146664,28346.0,28344.0,0.11039316]
[1680517226150,0.146664,28346.0,28345.0,0.00061386]
[1680517226417,0.146844,28346.0,28345.0,0.00061386]
[1680517227053,0.146664,28346.0,28345.0,0.00061386]
[1680517227303,0.149664,28346.0,28345.0,0.00061386]
[1680517227727,0.149844,28346.0,28345.0,0.00061386]
[1680517227935,0.149664,28346.0,28345.0,0.00061386]
[1680517229685,0.146664,28346.0,28345.0,0.00061386]
[1680517229905,0.146664,28346.0,28345.0,0.00261386]
[1680517230138,0.146844,28346.0,28345.0,0.00261386]
[1680517230386,0.146844,28346.0,28345.0,0.00061386]
[1680517230602,0.149844,28346.0,28345.0,0.00061386]
[1680517231265,0.191648,28346.0,28345.0,0.00061386]
[1680517231518,0.149844,28346.0,28345.0,0.00061386]
[1680517231735,0.149664,28346.0,28345.0,0.00061386]
[1680517232385,0.23327113,28346.0,28345.0,0.00061386]
[1680517232609,0.23345113,28346.0,28345.0,0.00061386]
[1680517232879,0.23345113,28346.0,28345.0,0.01825286]
[1680517233115,0.23345113,28346.0,28345.0,0.24697512]
[1680517233327,0.23345113,28346.0,28345.0,0.39697512]
[1680517233542,0.149844,28346.0,28345.0,0.39697512]
[1680517233762,0.149664,28346.0,28345.0,0.39697512]
[1680517234237,0.14959815,28346.0,28345.0,0.07831886]
[1680517234451,0.14659815,28346.0,28345.0,0.24697512]
[1680517234678,0.14659815,28346.0,28345.0,0.3885558]
[1680517234869,0.14659815,28346.0,28345.0,0.3735558]
[1680517235117,0.14653277,28346.0,28345.0,0.3883758]
[1680517235344,0.14653277,28346.0,28345.0,0.74335077]
[1680517235560,0.14653277,28346.0,28345.0,0.74335107]
[1680517235780,0.14653277,28346.0,28345.0,0.57451481]
[1680517235999,0.14653277,28346.0,28345.0,0.57448299]
[1680517236210,0.14646785,28346.0,28345.0,0.57448299]
[1680517236430,0.02409,28354.0,28353.0,0.3713]
[1680517236668,0.02409,28354.0,28353.0,1.14771966]
[1680517237344,0.02409,28354.0,28353.0,1.18977301]
[1680517237603,0.02409,28354.0,28353.0,1.23182635]
[1680517237822,0.02409,28354.0,28353.0,1.14756416]
[1680517238054,0.02409,28354.0,28353.0,1.14685781]
[1680517238312,0.02401526,28354.0,28353.0,1.16185781]
[1680517238528,0.02401526,28354.0,28353.0,1.14685781]
[1680517238751,0.02401526,28354.0,28353.0,1.16785781]
[1680517238968,0.02401526,28354.0,28353.0,1.09644459]
[1680517239151,0.02394122,28354.0,28353.0,0.99925821]
[1680517239646,0.02394122,28354.0,28353.0,0.97125821]
[1680517239881,0.02394122,28354.0,28353.0,0.88730702]
[1680517240098,0.02386787,28354.0,28353.0,0.88730702]
[1680517240318,0.02386787,28354.0,28353.0,0.8869899]
[1680517240566,0.02386787,28354.0,28353.0,0.9972899]
[1680517240779,0.02386787,28354.0,28353.0,1.20324109]
[1680517240997,0.02386787,28354.0,28353.0,1.23124109]
[1680517241210,0.02379513,28354.0,28353.0,1.05324109]
[1680517241407,0.02379513,28354.0,28353.0,1.08124109]
[1680517241662,0.02379513,28354.0,28353.0,0.9972899]
[1680517242077,0.02372299,28354.0,28353.0,0.9972899]
[1680517243235,0.02372299,28354.0,28353.0,1.05117811]
[1680517243693,0.02364431,28354.0,28353.0,1.05117811]
[1680517244615,0.02356563,28354.0,28353.0,1.05117811]
[1680517245065,0.02356563,28354.0,28353.0,0.9142899]
[1680517245545,0.02348761,28354.0,28353.0,0.9142899]
[1680517246591,0.02341024,28354.0,28353.0,0.9142899]
[1680517247668,0.02333352,28354.0,28353.0,0.9142899]
[1680517248593,0.02325745,28354.0,28353.0,0.9142899]
[1680517249553,0.02318202,28354.0,28353.0,0.9142899]
[1680517250285,0.02318202,28354.0,28353.0,0.8862899]
[1680517250547,0.02310722,28354.0,28353.0,0.9142899]
[1680517251486,0.02303305,28354.0,28353.0,0.9142899]
[1680517252151,0.02303305,28354.0,28353.0,0.8862899]
[1680517252338,0.02303305,28354.0,28353.0,0.9142899]
[1680517252583,0.0229595,28354.0,28353.0,0.8862899]
[1680517252804,0.0229595,28354.0,28353.0,0.9142899]
[1680517253522,0.02288657,28354.0,28353.0,0.9142899]
[1680517254642,0.02281425,28354.0,28353.0,0.9142899]
[1680517255423,0.02274254,28354.0,28353.0,0.9142899]
[1680517256455,0.02267143,28354.0,28353.0,0.9142899]
[1680517257221,0.02267143,28354.0,28353.0,1.0906199]
[1680517257434,0.02260151,28354.0,28353.0,1.0906199]
[1680517258444,0.02253218,28354.0,28353.0,1.0906199]
[1680517259323,0.02253218,28354.0,28353.0,1.1906199]
[1680517259568,0.02246285,28354.0,28353.0,1.1906199]
[1680517259784,0.02246285,28354.0,28353.0,1.0906199]
[1680517260453,0.02239409,28354.0,28353.0,1.0906199]
[1680517260955,0.02239409,28354.0,28353.0,1.0626199]
[1680517261438,0.02239409,28354.0,28353.0,1.0906199]
[1680517261657,0.02232591,28354.0,28353.0,1.2406199]
[1680517261878,0.02232591,28354.0,28353.0,1.2126199]
[1680517262106,0.02232591,28354.0,28353.0,1.2406199]
[1680517262331,0.02232591,28354.0,28353.0,1.4126199]
[1680517262556,0.0222583,28354.0,28353.0,1.7406199]
[1680517262777,0.0222583,28354.0,28353.0,1.7126199]
[1680517263006,0.0189583,28354.0,28353.0,2.12595109]
[1680517263518,0.01889661,28354.0,28353.0,2.12595109]
[1680517263967,0.01889661,28354.0,28353.0,2.0419999]
[1680517264180,0.01889661,28354.0,28353.0,2.19592668]
[1680517264630,0.01889661,28354.0,28353.0,2.06793157]
[1680517264631,0.01883548,28354.0,28353.0,2.06793157]
[1680517264825,0.01883548,28354.0,28353.0,1.94200479]
[1680517265503,0.01877537,28354.0,28353.0,1.94200479]
[1680517265724,0.01877537,28354.0,28353.0,1.93350479]
[1680517266616,0.01871526,28354.0,28353.0,1.93350479]
[1680517266825,0.01871526,28354.0,28353.0,1.90550479]
[1680517267042,0.01871526,28354.0,28353.0,1.97572668]
[1680517267268,0.01871526,28354.0,28353.0,1.90550049]
[1680517267488,0.01871526,28354.0,28353.0,1.93350049]
[1680517267704,0.01871526,28354.0,28353.0,2.03992727]
[1680517267928,0.01871526,28354.0,28353.0,2.19592668]
[1680517268383,0.01871526,28354.0,28353.0,2.21357169]
[1680517269749,0.01871526,28354.0,28353.0,2.25585829]
[1680517270219,0.01871526,28354.0,28353.0,2.43006583]
[1680517270444,0.01871526,28354.0,28353.0,2.45806583]
[1680517270662,0.01871526,28354.0,28353.0,2.51313175]
[1680517271530,0.01871526,28354.0,28353.0,2.63873824]
[1680517271755,0.01871526,28354.0,28353.0,2.72339848]
[1680517272174,0.01871526,28354.0,28353.0,2.85699848]
[1680517272369,0.01871526,28354.0,28353.0,2.85669848]
[1680517273044,0.01871526,28354.0,28353.0,2.6884851]
[1680517273187,0.01871526,28354.0,28353.0,2.6604851]
[1680517273406,0.01871526,28354.0,28353.0,2.6884851]
[1680517274431,0.02398,28358.0,28353.0,2.6884851]
[1680517274432,0.00871621,28374.0,28369.0,0.10839316]
[1680517274673,0.00018,28382.0,28374.0,0.37027653]
[1680517274915,1.44247476,28384.0,28377.0,0.17619]
[1680517275148,1.26815716,28383.0,28377.0,0.37277397]
[1680517275372,0.08874665,28381.0,28378.0,0.35497497]
[1680517275600,0.16334665,28381.0,28379.0,0.026118]
[1680517275832,0.16334665,28381.0,28379.0,0.026298]
[1680517276349,0.16334665,28381.0,28379.0,0.38127297]
[1680517276571,0.16334665,28381.0,28379.0,0.35697497]
[1680517276808,0.16334665,28381.0,28379.0,0.37459297]
[1680517277031,0.08874665,28381.0,28379.0,0.37459297]
[1680517277478,0.00018,28384.0,28380.0,0.016679]
[1680517277707,6e-05,28385.0,28381.0,0.052851]
[1680517277935,0.041313,28385.0,28381.0,0.017617]
[1680517278163,0.042539,28387.0,28381.0,0.017617]
[1680517278381,0.0821,28383.0,28381.0,0.017617]
[1680517278838,0.07417679,28384.0,28381.0,0.017617]
[1680517279074,0.07417679,28384.0,28381.0,0.019797]
[1680517279283,0.0827,28386.0,28381.0,0.017797]
[1680517279497,0.042134,28385.0,28381.0,0.019617]
[1680517279712,0.042134,28385.0,28381.0,0.017617]
[1680517279929,0.042134,28385.0,28381.0,0.019617]
[1680517280200,0.042134,28385.0,28381.0,0.017617]
[1680517280423,0.07768922,28384.0,28382.0,0.00060298]
[1680517280640,0.040715,28383.0,28382.0,0.01821898]
[1680517281913,0.040715,28383.0,28382.0,0.02021898]
[1680517283452,0.123215,28383.0,28382.0,0.02021898]
[1680517284098,0.123215,28383.0,28382.0,0.00260298]
[1680517284323,0.0825,28383.0,28382.0,0.02021898]
[1680517284546,0.0825,28383.0,28382.0,0.00260298]
[1680517284762,0.124168,28383.0,28382.0,0.02021898]
[1680517286297,0.124168,28383.0,28382.0,0.00260298]
[1680517286516,0.124168,28383.0,28382.0,0.02021898]
[1680517286751,0.124168,28383.0,28382.0,0.00260298]
[1680517287194,0.0825,28383.0,28382.0,0.02021898]
[1680517287902,0.124847,28383.0,28382.0,0.02021898]
[1680517288113,0.07768922,28384.0,28382.0,0.38369395]
[1680517288261,0.07768922,28384.0,28382.0,0.38387395]
[1680517288475,0.07768922,28384.0,28383.0,0.35497497]
[1680517288679,0.07768922,28384.0,28383.0,0.41650297]
[1680517288896,0.07258922,28384.0,28383.0,0.41632297]
[1680517289376,0.0828602,28386.0,28383.0,0.4169246]
[1680517289581,0.0827,28386.0,28384.0,0.0085]
[1680517289788,0.0827,28386.0,28384.0,0.37258897]
[1680517290217,0.0550237,28385.0,28384.0,0.37258897]
[1680517290639,0.0550237,28385.0,28383.0,0.00018]
[1680517290848,0.0550237,28385.0,28383.0,0.37258997]
[1680517291058,0.0550237,28385.0,28384.0,0.001]
[1680517291277,0.0827,28387.0,28384.0,0.017615]
[1680517291487,0.040272,28386.0,28384.0,0.017615]
[1680517291935,0.0404322,28386.0,28384.0,0.025615]
[1680517292148,0.0404322,28386.0,28384.0,0.017615]
[1680517293013,0.040272,28386.0,28384.0,0.017615]
[1680517293227,0.041272,28386.0,28384.0,0.024615]
[1680517293458,0.0414322,28386.0,28385.0,0.00060045]
[1680517294114,0.3719,28385.0,28381.0,0.00018]
[1680517294394,0.3719,28385.0,28379.0,0.00084898]
[1680517294395,0.99412702,28382.0,28379.0,0.00084898]
[1680517294620,0.6859,28380.0,28379.0,0.00084898]
[1680517294840,1.23846384,28380.0,28379.0,0.00084898]
[1680517295059,1.39648897,28380.0,28379.0,0.00084898]
[1680517295734,0.10245205,28370.0,28368.0,0.00018]
[1680517295953,0.0827,28368.0,28363.0,0.3713]
[1680517296174,0.0827,28366.0,28364.0,0.35497497]
[1680517296395,0.14197487,28365.0,28364.0,0.35515497]
[1680517296824,0.0827,28366.0,28364.0,0.35515497]
[1680517297027,0.043796,28365.0,28364.0,0.35515497]
[1680517297234,0.08480053,28365.0,28364.0,0.35515497]
[1680517297440,0.08505953,28365.0,28364.0,0.35515497]
[1680517297659,0.08505953,28365.0,28364.0,0.00018]
[1680517297868,0.08505953,28365.0,28363.0,0.00018]
[1680517298105,0.042077,28364.0,28363.0,0.00018]
[1680517298291,0.042077,28364.0,28362.0,0.09772795]
[1680517298927,0.04500453,28365.0,28363.0,0.72627497]
[1680517299137,0.04500453,28365.0,28364.0,0.017627]
[1680517299393,0.04500453,28365.0,28364.0,0.38831597]
[1680517299394,0.004,28365.0,28364.0,0.38831597]
[1680517299565,0.0827,28369.0,28368.0,0.09754795]
[1680517299772,0.12453,28369.0,28368.0,0.09754795]
[1680517299983,0.0827,28369.0,28368.0,0.09754795]
[1680517300190,0.121925,28369.0,28368.0,0.09754795]
[1680517300405,0.16299987,28369.0,28368.0,0.09754795]
[1680517300650,0.18099987,28369.0,28368.0,0.09772795]
[1680517300859,0.16299987,28369.0,28368.0,0.09772795]
[1680517301068,0.18999987,28369.0,28368.0,0.09772795]
[1680517301282,0.18993987,28369.0,28368.0,0.09754795]
[1680517301505,0.16293987,28369.0,28368.0,0.09754795]
[1680517301983,0.08029987,28369.0,28368.0,0.09754795]
[1680517302213,0.08029987,28369.0,28368.0,0.09254795]
[1680517302651,0.09829987,28369.0,28368.0,0.09254795]
[1680517302862,0.08029987,28369.0,28368.0,0.09254795]
[1680517303077,0.04107487,28369.0,28368.0,0.09254795]
[1680517303305,0.05207487,28369.0,28368.0,0.09254795]
[1680517303508,0.04107487,28369.0,28368.0,0.09254795]
[1680517303717,0.05907487,28369.0,28368.0,0.09254795]
[1680517303929,0.04107487,28369.0,28368.0,0.09254795]
[1680517304149,0.05207487,28369.0,28368.0,0.09254795]
[1680517304363,0.10761225,28374.0,28368.0,0.09254795]
[1680517304574,0.001,28369.0,28368.0,0.09454795]
[1680517305434,0.10427205,28374.0,28368.0,0.09454795]
[1680517305644,0.040011,28373.0,28368.0,0.09584795]
[1680517305868,0.040011,28373.0,28368.0,0.09884795]
[1680517306079,0.040011,28373.0,28368.0,0.45382292]
[1680517306293,0.04112761,28372.0,28368.0,0.45400292]
[1680517306510,0.04112761,28372.0,28368.0,0.45100292]
[1680517306715,0.04112761,28372.0,28368.0,0.46862792]
[1680517306946,0.04112761,28372.0,28368.0,0.47162792]
[1680517307146,0.04112761,28372.0,28368.0,0.45100292]
[1680517307372,0.04212761,28372.0,28368.0,0.45400292]
[1680517307812,0.04212761,28372.0,28368.0,0.47162792]
[1680517308281,0.04112761,28372.0,28368.0,0.46862792]
[1680517308522,0.04212761,28372.0,28368.0,0.47162792]
[1680517308735,0.04112761,28372.0,28368.0,0.46862792]
[1680517309165,0.04212761,28372.0,28368.0,0.47162792]
[1680517309379,0.001,28372.0,28368.0,0.47162792]
[1680517309634,0.001,28372.0,28368.0,0.11665295]
[1680517309864,0.0827,28372.0,28368.0,0.09602795]
[1680517310079,0.041695,28371.0,28368.0,0.09884795]
[1680517310290,0.08280503,28371.0,28368.0,0.09884795]
[1680517310522,0.042882,28370.0,28368.0,0.09902795]
[1680517310750,0.042882,28370.0,28368.0,0.09884795]
[1680517310987,0.042882,28370.0,28368.0,0.09902795]
[1680517311207,0.042882,28370.0,28368.0,0.09584795]
[1680517311830,0.053882,28370.0,28368.0,0.09584795]
[1680517312036,0.042772,28369.0,28368.0,0.09584795]
[1680517312250,0.04111003,28371.0,28368.0,0.09584795]
[1680517312251,0.057675,28370.0,28368.0,0.09584795]
[1680517312465,0.045198,28369.0,28368.0,0.09602795]
[1680517312674,0.045198,28369.0,28368.0,0.09584795]
[1680517312880,0.011,28369.0,28368.0,0.09584795]
[1680517313944,0.040237,28369.0,28368.0,0.09584795]
[1680517314164,0.017,28369.0,28368.0,0.09584795]
[1680517314383,0.0827,28374.0,28368.0,0.09584795]
[1680517314652,0.011,28369.0,28368.0,0.09584795]
[1680517314856,0.0827,28374.0,28368.0,0.09584795]
[1680517315080,0.039976,28373.0,28368.0,0.09584795]
[1680517315287,0.017,28369.0,28368.0,0.09584795]
[1680517315495,0.05028622,28373.0,28368.0,0.09584795]
[1680517315713,0.041602,28372.0,28368.0,0.09584795]
[1680517317002,0.004,28369.0,28368.0,0.09584795]
[1680517317513,0.05028622,28373.0,28368.0,0.09584795]
[1680517317656,0.046253,28372.0,28368.0,0.09584795]
[1680517317850,0.040709,28371.0,28368.0,0.09584795]
[1680517318079,0.043162,28372.0,28368.0,0.09584795]
[1680517318284,0.004,28369.0,28368.0,0.09584795]
[1680517318625,0.004,28372.0,28368.0,0.09584795]
[1680517318829,0.041928,28371.0,28368.0,0.09584795]
[1680517319928,0.004,28369.0,28368.0,0.09584795]
[1680517320153,0.05028622,28373.0,28368.0,0.09584795]
[1680517320380,0.038759,28372.0,28371.0,0.09584795]
[1680517320597,0.041576,28373.0,28371.0,0.09584795]
[1680517321294,0.06947193,28372.0,28371.0,0.09584795]
[1680517321511,0.04547193,28372.0,28371.0,0.09584795]
[1680517322417,0.0825,28375.0,28371.0,0.09584795]
[1680517322640,0.042816,28374.0,28371.0,0.09584795]
[1680517323061,0.024,28373.0,28371.0,0.09584795]
[1680517323286,0.044166,28372.0,28371.0,0.09584795]
[1680517323503,0.043719,28374.0,28371.0,0.09584795]
[1680517323987,0.024,28373.0,28371.0,0.09584795]
[1680517324198,0.041825,28372.0,28371.0,0.09584795]
[1680517324423,0.044834,28374.0,28371.0,0.09584795]
[1680517324645,0.068834,28374.0,28371.0,0.09584795]
[1680517324865,0.040975,28373.0,28371.0,0.09584795]
[1680517325115,0.041759,28374.0,28371.0,0.09584795]
[1680517325554,0.04326949,28373.0,28371.0,0.09584795]
[1680517325769,0.042431,28372.0,28371.0,0.09584795]
[1680517326885,0.024,28372.0,28371.0,0.09584795]
[1680517327646,0.064163,28372.0,28371.0,0.09584795]
[1680517327867,0.0197,28372.0,28371.0,0.09584795]
[1680517330224,0.063628,28372.0,28371.0,0.09584795]
[1680517331556,0.063628,28372.0,28371.0,0.08443895]
[1680517335058,0.06350945,28372.0,28371.0,0.08443895]
[1680517340211,0.06350945,28372.0,28371.0,0.16820422]
[1680517340425,0.11596828,28372.0,28371.0,0.08443895]
[1680517341731,0.11156828,28372.0,28371.0,0.08443895]
[1680517342575,0.46654325,28372.0,28371.0,0.08443895]
[1680517342794,0.46654325,28372.0,28370.0,0.00018]
[1680517342795,0.92054325,28372.0,28370.0,0.00018]
[1680517343025,0.53563828,28372.0,28371.0,0.08443895]
[1680517343237,0.66177528,28372.0,28371.0,0.08443895]
[1680517343668,0.64659383,28372.0,28371.0,0.08443895]
[1680517343882,0.67359383,28372.0,28371.0,0.08443895]
[1680517344107,0.64659383,28372.0,28371.0,0.08443895]
[1680517344338,0.67359383,28372.0,28371.0,0.08543895]
[1680517344804,0.65949583,28372.0,28371.0,0.08543895]
[1680517345018,0.67359383,28372.0,28371.0,0.08543895]
[1680517351690,0.65949583,28372.0,28371.0,0.08543895]
[1680517352129,0.57699583,28372.0,28371.0,0.08543895]
[1680517352543,0.9319708,28372.0,28371.0,0.08543895]
[1680517354666,0.8493708,28372.0,28371.0,0.08543895]
[1680517355502,0.84880077,28372.0,28371.0,0.08543895]
[1680517355938,0.83470277,28372.0,28371.0,0.08543895]
[1680517356572,0.84896097,28372.0,28371.0,0.08543895]
[1680517356807,0.84880077,28372.0,28371.0,0.08543895]
[1680517357022,0.84896097,28372.0,28371.0,0.08543895]
[1680517357877,0.83486297,28372.0,28371.0,0.08543895]
[1680517358304,0.84896097,28372.0,28371.0,0.08543895]
[1680517359065,0.83486297,28372.0,28371.0,0.08543895]
[1680517359458,0.84896097,28372.0,28371.0,0.08543895]
[1680517360255,0.93166097,28372.0,28371.0,0.08543895]
[1680517362031,0.91756297,28372.0,28371.0,0.08543895]
[1680517370232,0.93166097,28372.0,28371.0,0.08543895]
[1680517370538,0.93166097,28372.0,28371.0,0.001]
[1680517372250,0.99776097,28372.0,28371.0,0.001]
[1680517372920,0.99760077,28372.0,28371.0,0.001]
[1680517373968,1.5932959,28372.0,28371.0,0.001]
[1680517374179,1.5934561,28372.0,28371.0,0.001]
[1680517374387,1.46350598,28372.0,28371.0,0.001]
[1680517374597,2.78851691,28372.0,28371.0,0.001]
[1680517374809,2.7708719,28372.0,28371.0,0.001]
[1680517375051,2.7438719,28372.0,28366.0,0.16820422]
[1680517375239,0.4455,28367.0,28366.0,0.16820422]
[1680517375483,0.84365497,28367.0,28366.0,0.16838422]
[1680517375700,0.84365497,28367.0,28366.0,0.16820422]
[1680517376381,0.88581595,28367.0,28366.0,0.16820422]
[1680517376597,0.88581595,28367.0,28366.0,0.08443895]
[1680517376810,0.91281595,28367.0,28366.0,0.08443895]
[1680517377106,0.91281595,28367.0,28366.0,0.16820422]
[1680517377331,0.91281595,28367.0,28366.0,0.08443895]
[1680517377552,1.00121595,28367.0,28366.0,0.08443895]
[1680517378206,0.97421595,28367.0,28366.0,0.08443895]
[1680517379124,0.96921595,28367.0,28366.0,0.08443895]
[1680517379341,0.99621595,28367.0,28366.0,0.08443895]
[1680517380428,0.99637615,28367.0,28366.0,0.08443895]
[1680517383229,1.15407615,28367.0,28365.0,2.744024]
[1680517383443,1.07425397,28366.0,28365.0,2.744024]
[1680517383668,1.11651717,28366.0,28365.0,2.744024]
[1680517385467,1.1629724,28366.0,28365.0,2.744024]
[1680517385686,1.1899724,28366.0,28365.0,2.744024]
[1680517388004,1.81077485,28366.0,28365.0,2.54847392]
[1680517388443,1.78377485,28366.0,28365.0,2.54847392]
[1680517388670,1.65621741,28366.0,28365.0,2.54847392]
[1680517388896,2.77652366,28366.0,28365.0,2.54847392]
[1680517389128,1.48051741,28366.0,28365.0,2.54847392]
[1680517389348,1.50751741,28366.0,28365.0,2.54847392]
[1680517389585,2.74955804,28366.0,28365.0,2.54847392]
[1680517389797,2.77655804,28366.0,28365.0,2.54847392]
[1680517390679,1.50751741,28366.0,28365.0,2.54847392]
[1680517390902,1.48051741,28366.0,28365.0,2.54847392]
[1680517391343,1.50751741,28366.0,28365.0,2.54847392]
[1680517391552,1.48051741,28366.0,28365.0,2.54847392]
[1680517391887,1.50751741,28366.0,28365.0,2.54847392]
[1680517392200,1.48051741,28366.0,28365.0,2.54847392]
[1680517392418,1.50751741,28366.0,28365.0,2.54847392]
[1680517392663,0.47166305,28368.0,28367.0,0.08443895]
[1680517392664,0.18729992,28368.0,28367.0,0.08443895]
[1680517392897,0.137196,28377.0,28373.0,0.08443895]
[1680517393143,0.37534997,28376.0,28373.0,0.08443895]
[1680517393374,0.020293,28375.0,28373.0,0.08443895]
[1680517393599,0.35497497,28374.0,28373.0,0.08443895]
[1680517393823,0.37635797,28374.0,28373.0,0.08443895]
[1680517394063,0.37635797,28374.0,28373.0,0.08461895]
[1680517394289,0.37635797,28374.0,28373.0,0.08661895]
[1680517394507,0.37635797,28374.0,28373.0,0.08461895]
[1680517394954,0.38535797,28374.0,28373.0,0.08661895]
[1680517395180,0.75665797,28374.0,28373.0,0.08661895]
[1680517395606,0.74765797,28374.0,28373.0,0.08461895]
[1680517396696,0.75665797,28374.0,28373.0,0.08661895]
[1680517396931,0.74765797,28374.0,28373.0,0.08461895]
[1680517397143,0.74765797,28374.0,28373.0,0.08661895]
[1680517397144,0.75665797,28374.0,28373.0,0.08661895]
[1680517403779,0.77075497,28374.0,28373.0,0.08661895]
[1680517404652,0.75665797,28374.0,28373.0,0.08661895]
[1680517405312,0.77075497,28374.0,28373.0,0.08661895]
[1680517405504,1.07075497,28374.0,28373.0,0.08661895]
[1680517409943,1.15321497,28374.0,28369.0,0.42895414]
[1680517410189,0.3713,28370.0,28369.0,0.42895414]
[1680517410417,0.74722797,28370.0,28369.0,0.00018]
[1680517410677,0.74722797,28370.0,28367.0,0.00018]
[1680517410926,0.3713,28368.0,28366.0,0.00018]
[1680517411150,0.74764897,28367.0,28366.0,0.00018]
[1680517412430,0.77464897,28367.0,28366.0,0.00018]
[1680517416712,0.78874897,28367.0,28366.0,0.00018]
[1680517417732,0.4713,28366.0,28365.0,2.54865392]
[1680517418061,0.76241697,28366.0,28365.0,2.54865392]
[1680517419139,0.78941697,28366.0,28365.0,2.54865392]
[1680517422200,1.07303986,28366.0,28365.0,2.54865392]
[1680517422415,0.79791697,28366.0,28365.0,2.54865392]
[1680517422665,0.79803697,28366.0,28365.0,2.54853392]
[1680517422877,1.09809697,28366.0,28365.0,2.54847392]
[1680517423633,1.07549597,28366.0,28365.0,2.54847392]
[1680517423830,1.08959697,28366.0,28365.0,2.54847392]
[1680517428150,1.07549597,28366.0,28365.0,2.54847392]
[1680517434337,1.08959697,28366.0,28365.0,2.54847392]
[1680517437309,1.08949464,28366.0,28365.0,2.54853392]
[1680517437529,1.08931464,28366.0,28365.0,2.54865392]
[1680517444432,1.12653181,28366.0,28365.0,2.54865392]
[1680517445546,1.11261081,28366.0,28365.0,2.54865392]
[1680517445995,1.12653181,28366.0,28365.0,2.54865392]
[1680517452419,0.00018,28367.0,28365.0,2.54865392]
[1680517452645,0.00018,28371.0,28366.0,0.0828]
[1680517452873,0.35497497,28367.0,28366.0,0.00018]
[1680517453377,0.72627497,28367.0,28366.0,0.00018]
[1680517453594,0.72627497,28367.0,28366.0,0.00118]
[1680517453809,0.72627497,28367.0,28366.0,0.00018]
[1680517454033,0.73427497,28367.0,28366.0,0.00118]
[1680517455307,0.72627497,28367.0,28366.0,0.00018]
[1680517456372,0.73427497,28367.0,28366.0,0.00218]
[1680517465752,0.74857197,28367.0,28366.0,0.00218]
[1680517465962,0.73427497,28367.0,28366.0,0.00218]
[1680517466603,0.74876397,28367.0,28366.0,0.00218]
[1680517467079,0.74846197,28367.0,28366.0,0.00218]
[1680517467302,0.73427497,28367.0,28366.0,0.00218]
[1680517467740,0.74890597,28367.0,28366.0,0.00218]
[1680517470785,0.73427497,28367.0,28366.0,0.00218]
[1680517471029,0.74934597,28367.0,28366.0,0.00218]
[1680517471248,0.73427497,28367.0,28366.0,0.00218]
[1680517471461,0.74928597,28367.0,28366.0,0.00218]
[1680517472014,0.76338597,28367.0,28366.0,0.00218]
[1680517474716,0.83728597,28367.0,28366.0,0.00218]
[1680517474959,1.13728597,28367.0,28366.0,0.00218]
[1680517475172,1.13728597,28367.0,28366.0,0.002]
[1680517475797,1.12928597,28367.0,28365.0,2.54865392]
[1680517476005,1.11432297,28366.0,28365.0,2.54865392]
[1680517476269,1.15662597,28366.0,28365.0,2.54865392]
[1680517477734,1.18362597,28366.0,28365.0,2.54965392]
[1680517480144,1.15662597,28366.0,28365.0,2.54865392]
[1680517480359,1.18362597,28366.0,28365.0,2.54965392]
[1680517484109,1.18380597,28366.0,28365.0,2.54447392]
[1680517484325,1.10950597,28366.0,28365.0,2.54447392]
[1680517484544,1.08130397,28366.0,28365.0,2.54447392]
[1680517489960,1.08980397,28366.0,28365.0,2.54447392]
[1680517491974,1.16440397,28366.0,28365.0,2.54447392]
[1680517492583,0.69590297,28366.0,28365.0,2.54447392]
[1680517492792,0.68215497,28366.0,28365.0,2.54447392]
[1680517493846,0.65515497,28366.0,28365.0,2.54347392]
[1680517494093,0.67297497,28366.0,28365.0,2.54465392]
[1680517494930,0.65497497,28366.0,28365.0,2.54365392]
[1680517495128,0.65497497,28366.0,28365.0,2.54465392]
[1680517495329,0.67997497,28366.0,28365.0,2.54465392]
[1680517495600,0.65497497,28366.0,28365.0,2.54365392]
[1680517495816,0.67997497,28366.0,28365.0,2.54465392]
[1680517496032,0.65497497,28366.0,28365.0,2.54365392]
[1680517496268,0.67997497,28366.0,28365.0,2.54465392]
[1680517496483,0.65497497,28366.0,28365.0,2.54365392]
[1680517497153,0.67997497,28366.0,28365.0,2.54465392]
[1680517498036,0.65497497,28366.0,28365.0,2.54365392]
[1680517498680,0.67997497,28366.0,28365.0,2.54465392]
[1680517498890,0.69351997,28366.0,28365.0,2.54465392]
[1680517499430,0.67997497,28366.0,28365.0,2.54465392]
[1680517499853,1.06537597,28366.0,28365.0,2.54465392]
[1680517500061,1.07966097,28366.0,28365.0,2.54465392]
[1680517502189,2.64764753,28366.0,28365.0,2.54447392]
[1680517502410,3.01439254,28366.0,28365.0,2.54447392]
[1680517504000,2.98939254,28366.0,28365.0,2.54347392]
[1680517504226,2.72600705,28366.0,28365.0,2.54347392]
[1680517504450,2.69900705,28366.0,28365.0,2.54347392]
[1680517504678,2.72600705,28366.0,28365.0,2.54347392]
[1680517505121,2.72600705,28366.0,28365.0,2.54340027]
[1680517506282,2.7795394,28366.0,28365.0,2.54340027]
[1680517506521,2.7049394,28366.0,28365.0,2.54340027]
[1680517507266,2.6304394,28366.0,28365.0,2.54340027]
[1680517508370,2.6304394,28366.0,28365.0,2.54358027]
[1680517508810,2.6304394,28366.0,28365.0,2.54340027]
[1680517512027,2.7133394,28366.0,28365.0,2.54340027]
[1680517513649,2.1335394,28366.0,28365.0,2.54340027]
[1680517513876,2.1335394,28366.0,28365.0,2.54358027]